[Event "*** Titled Tuesday Blitz"]
[Site "Chess.com"]
[Date "2020.02.04"]
[Round "9"]
[White "Eloist"]
[Black "norwaytoadog"]
[Result "1-0"]
[WhiteElo "2244"]
[BlackElo "2274"]
[TimeControl "180+2"]
[EndTime "15:08:47 PST"]
[Termination "Eloist won on time"]

1. e4 {[%clk 0:03:01.9]} 1... e5 {[%clk 0:03:00.6]} 2. Bc4 {[%clk 0:03:02.3]}
2... Nf6 {[%clk 0:03:01.2]} 3. d3 {[%clk 0:03:03.6]} 3... c6 {[%clk 0:03:02.1]}
4. Nf3 {[%clk 0:03:04.9]} 4... d6 {[%clk 0:03:00.1]} 5. O-O {[%clk 0:03:05]}
5... a5 {[%clk 0:03:00.3]} 6. c3 {[%clk 0:02:52.1]} 6... Be7 {[%clk 0:03:01.1]}
7. Re1 {[%clk 0:02:48]} 7... O-O {[%clk 0:02:56.3]} 8. Bb3 {[%clk 0:02:47.6]}
8... Nbd7 {[%clk 0:02:56.5]} 9. d4 {[%clk 0:02:46.2]} 9... h6 {[%clk 0:02:37.6]}
10. Nbd2 {[%clk 0:02:44.7]} 10... Re8 {[%clk 0:02:38.2]} 11. Nf1 {[%clk
0:02:43.8]} 11... b5 {[%clk 0:02:33.1]} 12. Ng3 {[%clk 0:02:43.4]} 12... Bf8
{[%clk 0:02:29]} 13. a4 {[%clk 0:02:41.5]} 13... Nb6 {[%clk 0:02:15.2]} 14. axb5
{[%clk 0:02:33.2]} 14... a4 {[%clk 0:02:08.2]} 15. Bc2 {[%clk 0:02:21.9]} 15...
cxb5 {[%clk 0:02:03.6]} 16. dxe5 {[%clk 0:02:22.6]} 16... dxe5 {[%clk
0:02:02.6]} 17. Qxd8 {[%clk 0:02:23.2]} 17... Rxd8 {[%clk 0:02:03.9]} 18. Nxe5
{[%clk 0:02:24.2]} 18... Be6 {[%clk 0:01:48.7]} 19. Be3 {[%clk 0:02:18.9]} 19...
Nbd7 {[%clk 0:01:41.4]} 20. Nc6 {[%clk 0:02:17.6]} 20... Rdc8 {[%clk 0:01:38.1]}
21. Nd4 {[%clk 0:02:18.4]} 21... Bc4 {[%clk 0:01:35.9]} 22. h3 {[%clk
0:02:02.2]} 22... Nc5 {[%clk 0:01:34.2]} 23. Red1 {[%clk 0:01:55]} 23... Re8
{[%clk 0:01:29.2]} 24. f3 {[%clk 0:01:47.9]} 24... g6 {[%clk 0:01:24.7]} 25. Kf2
{[%clk 0:01:44.5]} 25... h5 {[%clk 0:01:22.3]} 26. h4 {[%clk 0:01:44.5]} 26...
Nfd7 {[%clk 0:01:17.4]} 27. Nc6 {[%clk 0:01:41.1]} 27... Rac8 {[%clk 0:01:09.6]}
28. Nb4 {[%clk 0:01:37.3]} 28... Ne5 {[%clk 0:01:06.8]} 29. Bd4 {[%clk
0:01:28.4]} 29... Nb3 {[%clk 0:00:57.4]} 30. Bxb3 {[%clk 0:01:25.5]} 30... Bxb3
{[%clk 0:00:58.3]} 31. Rd2 {[%clk 0:01:23]} 31... Bxb4 {[%clk 0:00:53]} 32. cxb4
{[%clk 0:01:21.9]} 32... Nc4 {[%clk 0:00:52.3]} 33. Re2 {[%clk 0:01:22.1]} 33...
Red8 {[%clk 0:00:48.1]} 34. Bc3 {[%clk 0:01:19.4]} 34... Rd3 {[%clk 0:00:45.5]}
35. Bf6 {[%clk 0:01:10.7]} 35... Rc6 {[%clk 0:00:39.9]} 36. e5 {[%clk
0:01:10.3]} 36... Nb6 {[%clk 0:00:31.8]} 37. Ne4 {[%clk 0:01:10.4]} 37... Nd5
{[%clk 0:00:30.3]} 38. Nc5 {[%clk 0:01:08.3]} 38... Rd1 {[%clk 0:00:28.1]} 39.
Nxb3 {[%clk 0:01:06.5]} 39... Rxa1 {[%clk 0:00:25.7]} 40. Nxa1 {[%clk
0:01:07.1]} 40... Nxb4 {[%clk 0:00:25.6]} 41. g4 {[%clk 0:00:59.8]} 41... Rc1
{[%clk 0:00:25.3]} 42. Rd2 {[%clk 0:00:51.8]} 42... Kh7 {[%clk 0:00:17]} 43. Rd8
{[%clk 0:00:51.3]} 43... g5 {[%clk 0:00:17.9]} 44. gxh5 {[%clk 0:00:48.5]} 1-0

[Event "*** Titled Tuesday Blitz"]
[Site "Chess.com"]
[Date "2020.02.04"]
[Round "9"]
[White "politeplayer"]
[Black "Playgood28"]
[Result "0-1"]
[WhiteElo "2149"]
[BlackElo "2278"]
[TimeControl "180+2"]
[EndTime "15:08:50 PST"]
[Termination "Playgood28 won by resignation"]

1. e4 {[%clk 0:03:01.9]} 1... e5 {[%clk 0:02:59.8]} 2. Nc3 {[%clk 0:03:00]} 2...
d6 {[%clk 0:02:59.3]} 3. Bc4 {[%clk 0:03:01.1]} 3... Nf6 {[%clk 0:02:57.2]} 4.
f4 {[%clk 0:03:00.1]} 4... exf4 {[%clk 0:02:55.8]} 5. Nf3 {[%clk 0:02:58.1]}
5... Be7 {[%clk 0:02:56.6]} 6. d4 {[%clk 0:02:56.8]} 6... O-O {[%clk 0:02:56.6]}
7. Bxf4 {[%clk 0:02:53]} 7... Nxe4 {[%clk 0:02:56.5]} 8. Nxe4 {[%clk 0:02:51.3]}
8... d5 {[%clk 0:02:57.5]} 9. Bd3 {[%clk 0:02:34.2]} 9... dxe4 {[%clk
0:02:58.6]} 10. Bxe4 {[%clk 0:02:35.6]} 10... Bb4+ {[%clk 0:02:49.6]} 11. c3
{[%clk 0:02:34.3]} 11... Qe7 {[%clk 0:02:40.4]} 12. Qd3 {[%clk 0:02:06.5]} 12...
f5 {[%clk 0:02:27.1]} 13. Ne5 {[%clk 0:01:48.6]} 13... fxe4 {[%clk 0:02:23.9]}
14. Qxe4 {[%clk 0:01:39.6]} 14... Bd6 {[%clk 0:02:21.5]} 15. O-O {[%clk
0:01:39.8]} 15... Bxe5 {[%clk 0:02:04.2]} 16. Bxe5 {[%clk 0:01:35.6]} 16... Nc6
{[%clk 0:02:02.1]} 17. Rxf8+ {[%clk 0:01:31.3]} 17... Qxf8 {[%clk 0:01:46.2]}
18. Qd5+ {[%clk 0:00:48.6]} 18... Qf7 {[%clk 0:01:42.1]} 19. Qxf7+ {[%clk
0:00:47.6]} 19... Kxf7 {[%clk 0:01:42]} 20. Rf1+ {[%clk 0:00:47.4]} 20... Kg8
{[%clk 0:01:36.2]} 21. Bxc7 {[%clk 0:00:45.8]} 21... Be6 {[%clk 0:01:33.9]} 22.
Re1 {[%clk 0:00:40.4]} 22... Bxa2 {[%clk 0:01:24.6]} 23. b4 {[%clk 0:00:37.8]}
23... a6 {[%clk 0:01:23.9]} 24. Kf2 {[%clk 0:00:20.4]} 24... Rf8+ {[%clk
0:01:20.3]} 25. Kg3 {[%clk 0:00:20.2]} 25... Kf7 {[%clk 0:01:15.5]} 26. Rf1+
{[%clk 0:00:17.4]} 26... Ke8 {[%clk 0:01:15.3]} 27. Rxf8+ {[%clk 0:00:18.1]}
27... Kxf8 {[%clk 0:01:15.6]} 28. Bd6+ {[%clk 0:00:19.1]} 28... Kf7 {[%clk
0:01:15.4]} 29. Kf4 {[%clk 0:00:20.4]} 29... Ke6 {[%clk 0:01:16]} 30. Bf8 {[%clk
0:00:20.3]} 30... Kf7 {[%clk 0:01:05]} 31. Bc5 {[%clk 0:00:19.6]} 31... Bd5
{[%clk 0:01:05.9]} 32. g4 {[%clk 0:00:19.6]} 32... h6 {[%clk 0:01:04.7]} 33. h4
{[%clk 0:00:20.4]} 33... Kf6 {[%clk 0:00:59.7]} 34. g5+ {[%clk 0:00:21.1]} 34...
hxg5+ {[%clk 0:00:58.3]} 35. hxg5+ {[%clk 0:00:22]} 35... Ke6 {[%clk 0:00:58]}
36. Bf8 {[%clk 0:00:21.5]} 36... g6 {[%clk 0:00:58.7]} 37. Bg7 {[%clk
0:00:20.1]} 37... Bb3 {[%clk 0:00:54.9]} 38. Ke3 {[%clk 0:00:18.7]} 38... Kd5
{[%clk 0:00:52.3]} 39. Kd3 {[%clk 0:00:14.1]} 39... Bc4+ {[%clk 0:00:50.5]} 40.
Ke3 {[%clk 0:00:14.8]} 40... Ne7 {[%clk 0:00:50.4]} 41. Bf6 {[%clk 0:00:14.5]}
41... Nf5+ {[%clk 0:00:51.4]} 42. Kf4 {[%clk 0:00:15.2]} 42... Nd6 {[%clk
0:00:51.7]} 43. Bg7 {[%clk 0:00:13]} 43... Ne4 {[%clk 0:00:52.3]} 44. Ke3 {[%clk
0:00:10.6]} 44... Nxc3 {[%clk 0:00:52.9]} 45. Kd2 {[%clk 0:00:11.9]} 45... Nb5
{[%clk 0:00:52.2]} 0-1

[Event "*** Titled Tuesday Blitz"]
[Site "Chess.com"]
[Date "2020.02.04"]
[Round "9"]
[White "andrzej"]
[Black "Witik"]
[Result "0-1"]
[WhiteElo "2357"]
[BlackElo "2582"]
[TimeControl "180+2"]
[EndTime "15:08:51 PST"]
[Termination "Witik won by checkmate"]

1. d4 {[%clk 0:03:01.9]} 1... b5 {[%clk 0:02:51.7]} 2. e4 {[%clk 0:02:57.4]}
2... Bb7 {[%clk 0:02:52.4]} 3. Nd2 {[%clk 0:02:52.8]} 3... a6 {[%clk 0:02:50.8]}
4. f4 {[%clk 0:02:51.5]} 4... e6 {[%clk 0:02:50.2]} 5. Ngf3 {[%clk 0:02:49.3]}
5... c5 {[%clk 0:02:51]} 6. c3 {[%clk 0:02:35.1]} 6... Qb6 {[%clk 0:02:46]} 7.
a4 {[%clk 0:02:26.4]} 7... Nf6 {[%clk 0:02:35.5]} 8. Bd3 {[%clk 0:02:18.8]} 8...
Nc6 {[%clk 0:02:28.5]} 9. axb5 {[%clk 0:02:10.8]} 9... axb5 {[%clk 0:02:29.2]}
10. Rxa8+ {[%clk 0:02:11.6]} 10... Bxa8 {[%clk 0:02:31.1]} 11. d5 {[%clk
0:01:41.9]} 11... exd5 {[%clk 0:02:31.2]} 12. exd5 {[%clk 0:01:41.1]} 12... Nxd5
{[%clk 0:02:30.6]} 13. Qe2+ {[%clk 0:01:42.2]} 13... Be7 {[%clk 0:02:28.8]} 14.
Ne4 {[%clk 0:01:38.3]} 14... c4 {[%clk 0:02:24.7]} 15. Bc2 {[%clk 0:01:20.9]}
15... O-O {[%clk 0:02:22.8]} 16. Nfg5 {[%clk 0:01:10.8]} 16... h6 {[%clk
0:02:13.3]} 17. h4 {[%clk 0:00:31.5]} 17... Re8 {[%clk 0:02:08.5]} 18. Kf1
{[%clk 0:00:31.5]} 18... Bf8 {[%clk 0:01:47.4]} 19. Nxf7 {[%clk 0:00:26]} 19...
Nd4 {[%clk 0:01:04.4]} 20. cxd4 {[%clk 0:00:16.6]} 20... Kxf7 {[%clk 0:01:05.1]}
21. Ng5+ {[%clk 0:00:13.6]} 21... hxg5 {[%clk 0:01:06]} 22. Qh5+ {[%clk
0:00:13.4]} 22... Ke7 {[%clk 0:00:56.5]} 23. Qxg5+ {[%clk 0:00:12]} 23... Qf6
{[%clk 0:00:54.3]} 24. Qe5+ {[%clk 0:00:06.3]} 24... Kd8 {[%clk 0:00:43.9]} 25.
Qb8+ {[%clk 0:00:05.6]} 25... Ke7 {[%clk 0:00:45.6]} 26. Qe5+ {[%clk 0:00:04.5]}
26... Kf7 {[%clk 0:00:30]} 27. Qh5+ {[%clk 0:00:04.1]} 27... g6 {[%clk
0:00:31.6]} 28. Qh7+ {[%clk 0:00:04.4]} 28... Bg7 {[%clk 0:00:33.2]} 29. h5
{[%clk 0:00:04.7]} 29... Nxf4 {[%clk 0:00:34.9]} 30. hxg6+ {[%clk 0:00:05.8]}
30... Nxg6+ {[%clk 0:00:36]} 31. Kg1 {[%clk 0:00:07.3]} 31... Qxd4+ {[%clk
0:00:33.7]} 32. Kh2 {[%clk 0:00:07.6]} 32... Rh8 {[%clk 0:00:17.2]} 33. Bxg6+
{[%clk 0:00:07.2]} 33... Ke7 {[%clk 0:00:11.9]} 34. Bg5+ {[%clk 0:00:07.4]}
34... Kd6 {[%clk 0:00:13.2]} 35. Qxh8 {[%clk 0:00:04]} 35... Bxh8 {[%clk
0:00:13.5]} 36. Bh5 {[%clk 0:00:03.8]} 36... Be5+ {[%clk 0:00:14.3]} 37. g3
{[%clk 0:00:04.3]} 37... Qf2+ {[%clk 0:00:13.4]} 38. Kh3 {[%clk 0:00:05.4]}
38... Qxg3# {[%clk 0:00:14.6]} 0-1

[Event "*** Titled Tuesday Blitz"]
[Site "Chess.com"]
[Date "2020.02.04"]
[Round "9"]
[White "temus_galaktionov"]
[Black "M1711"]
[Result "1/2-1/2"]
[WhiteElo "2706"]
[BlackElo "2535"]
[TimeControl "180+2"]
[EndTime "15:08:53 PST"]
[Termination "Game drawn by repetition"]

1. d4 {[%clk 0:03:00]} 1... Nf6 {[%clk 0:03:00.6]} 2. Nf3 {[%clk 0:03:01.3]}
2... g6 {[%clk 0:03:01.9]} 3. c4 {[%clk 0:03:02.4]} 3... Bg7 {[%clk 0:03:03.2]}
4. Nc3 {[%clk 0:03:04.1]} 4... d5 {[%clk 0:03:04.8]} 5. cxd5 {[%clk 0:03:05.3]}
5... Nxd5 {[%clk 0:03:06.7]} 6. e4 {[%clk 0:03:06.8]} 6... Nxc3 {[%clk
0:03:08.3]} 7. bxc3 {[%clk 0:03:08.7]} 7... c5 {[%clk 0:03:10.2]} 8. Be3 {[%clk
0:03:10.3]} 8... Nc6 {[%clk 0:03:11.1]} 9. Qd2 {[%clk 0:03:11.4]} 9... Qa5
{[%clk 0:03:08.5]} 10. Rc1 {[%clk 0:03:11.5]} 10... O-O {[%clk 0:02:56]} 11. d5
{[%clk 0:03:09.9]} 11... Rd8 {[%clk 0:02:56.8]} 12. Be2 {[%clk 0:03:11]} 12...
e6 {[%clk 0:02:57.1]} 13. O-O {[%clk 0:03:11.9]} 13... exd5 {[%clk 0:02:56]} 14.
exd5 {[%clk 0:03:13]} 14... Ne7 {[%clk 0:02:57.6]} 15. c4 {[%clk 0:03:13.6]}
15... Qxd2 {[%clk 0:02:58.4]} 16. Bxd2 {[%clk 0:03:15]} 16... Nf5 {[%clk
0:02:55.2]} 17. Bc3 {[%clk 0:03:15.7]} 17... Nd6 {[%clk 0:02:52.2]} 18. Bxg7
{[%clk 0:03:15.4]} 18... Kxg7 {[%clk 0:02:54.1]} 19. Bd3 {[%clk 0:03:14.5]}
19... Re8 {[%clk 0:02:46.9]} 20. Rb1 {[%clk 0:03:14]} 20... Bg4 {[%clk
0:02:45.4]} 21. Rfe1 {[%clk 0:02:52]} 21... Bxf3 {[%clk 0:02:45]} 22. gxf3
{[%clk 0:02:53.5]} 22... Kf6 {[%clk 0:02:45.1]} 23. Kg2 {[%clk 0:02:51.6]} 23...
h5 {[%clk 0:02:43.5]} 24. f4 {[%clk 0:02:46.8]} 24... Rxe1 {[%clk 0:02:11.1]}
25. Rxe1 {[%clk 0:02:45.8]} 25... Rc8 {[%clk 0:02:06.1]} 26. a4 {[%clk
0:02:41.7]} 26... Re8 {[%clk 0:01:54.8]} 27. Re3 {[%clk 0:02:33.2]} 27... Re7
{[%clk 0:01:43.3]} 28. Kf3 {[%clk 0:02:32.2]} 28... b6 {[%clk 0:01:36]} 29. h4
{[%clk 0:02:29.3]} 29... a6 {[%clk 0:01:33.7]} 30. Kg3 {[%clk 0:02:24.5]} 30...
Re8 {[%clk 0:00:56.4]} 31. Kf3 {[%clk 0:02:20.8]} 31... Rb8 {[%clk 0:00:36.7]}
32. Re1 {[%clk 0:02:15.1]} 32... b5 {[%clk 0:00:38.1]} 33. cxb5 {[%clk
0:01:13.6]} 33... axb5 {[%clk 0:00:40]} 34. Bxb5 {[%clk 0:01:13.6]} 34... Nxb5
{[%clk 0:00:40.3]} 35. axb5 {[%clk 0:01:14.1]} 35... Rxb5 {[%clk 0:00:42.2]} 36.
d6 {[%clk 0:01:12.1]} 36... Rb8 {[%clk 0:00:22.8]} 37. Re5 {[%clk 0:01:10.5]}
37... Rd8 {[%clk 0:00:21.9]} 38. Rxc5 {[%clk 0:01:10.1]} 38... Rxd6 {[%clk
0:00:23.4]} 39. Kg3 {[%clk 0:01:11.3]} 39... Rd3+ {[%clk 0:00:24.1]} 40. f3
{[%clk 0:01:12.4]} 40... Rd6 {[%clk 0:00:24.1]} 41. Ra5 {[%clk 0:01:11.8]} 41...
Rc6 {[%clk 0:00:24.8]} 42. Rg5 {[%clk 0:01:12.2]} 42... Rc1 {[%clk 0:00:24.5]}
43. Kg2 {[%clk 0:01:10.6]} 43... Rc2+ {[%clk 0:00:24.5]} 44. Kg3 {[%clk
0:01:11.8]} 44... Rc1 {[%clk 0:00:25.3]} 45. f5 {[%clk 0:01:10.3]} 45... Rg1+
{[%clk 0:00:17.6]} 46. Kf4 {[%clk 0:01:11.2]} 46... Rh1 {[%clk 0:00:19.2]} 47.
Kg3 {[%clk 0:01:02.7]} 47... Rg1+ {[%clk 0:00:19.9]} 48. Kf4 {[%clk 0:01:03.8]}
48... Rh1 {[%clk 0:00:21.4]} 49. Kg3 {[%clk 0:01:05]} 49... Rg1+ {[%clk
0:00:12.6]} 1/2-1/2

[Event "*** Titled Tuesday Blitz"]
[Site "Chess.com"]
[Date "2020.02.04"]
[Round "9"]
[White "kleinebeer98"]
[Black "Fy_Rakotomaharo"]
[Result "1-0"]
[WhiteElo "2723"]
[BlackElo "2571"]
[TimeControl "180+2"]
[EndTime "15:08:58 PST"]
[Termination "kleinebeer98 won by resignation"]

1. e4 {[%clk 0:03:01.9]} 1... c5 {[%clk 0:03:00.8]} 2. Nf3 {[%clk 0:03:03.4]}
2... d6 {[%clk 0:03:02]} 3. Nc3 {[%clk 0:03:05]} 3... a6 {[%clk 0:03:02.4]} 4.
d4 {[%clk 0:03:04.5]} 4... cxd4 {[%clk 0:03:04.3]} 5. Nxd4 {[%clk 0:03:06.4]}
5... Nf6 {[%clk 0:03:05.5]} 6. Bg5 {[%clk 0:03:04.5]} 6... e6 {[%clk 0:03:06.4]}
7. f4 {[%clk 0:03:04.8]} 7... Be7 {[%clk 0:03:07.6]} 8. Qf3 {[%clk 0:03:05.6]}
8... Qc7 {[%clk 0:03:08.7]} 9. Bd3 {[%clk 0:03:05.2]} 9... Nbd7 {[%clk
0:03:05.7]} 10. g4 {[%clk 0:03:06.5]} 10... b5 {[%clk 0:02:54.4]} 11. O-O-O
{[%clk 0:02:58.1]} 11... Bb7 {[%clk 0:02:51.2]} 12. Bxf6 {[%clk 0:02:49.7]}
12... Nxf6 {[%clk 0:02:45.5]} 13. g5 {[%clk 0:02:45.8]} 13... Nd7 {[%clk
0:02:41.7]} 14. Kb1 {[%clk 0:02:40]} 14... b4 {[%clk 0:02:38.7]} 15. Nce2 {[%clk
0:02:34.4]} 15... Nc5 {[%clk 0:02:23.5]} 16. h4 {[%clk 0:02:26.8]} 16... O-O-O
{[%clk 0:02:14.6]} 17. Ng3 {[%clk 0:02:23]} 17... g6 {[%clk 0:02:07.1]} 18. Rhe1
{[%clk 0:02:17.1]} 18... h6 {[%clk 0:01:53.5]} 19. Bf1 {[%clk 0:02:12.2]} 19...
hxg5 {[%clk 0:01:51.2]} 20. hxg5 {[%clk 0:02:13.5]} 20... e5 {[%clk 0:01:51.4]}
21. Nb3 {[%clk 0:02:13]} 21... Rh2 {[%clk 0:01:33.1]} 22. fxe5 {[%clk
0:02:08.7]} 22... dxe5 {[%clk 0:01:30.5]} 23. Rxd8+ {[%clk 0:02:08]} 23... Bxd8
{[%clk 0:01:31.9]} 24. Bc4 {[%clk 0:02:04.2]} 24... Kb8 {[%clk 0:01:24.7]} 25.
Nxc5 {[%clk 0:01:39.4]} 25... Qxc5 {[%clk 0:01:24.9]} 26. Qxf7 {[%clk
0:01:40.7]} 26... Bxg5 {[%clk 0:01:08.5]} 27. Rd1 {[%clk 0:01:26.9]} 27... Qf2
{[%clk 0:00:53.4]} 28. Qe8+ {[%clk 0:01:09.2]} 28... Ka7 {[%clk 0:00:51.5]} 29.
Ne2 {[%clk 0:01:11.1]} 29... Qc5 {[%clk 0:00:42.9]} 30. Bd3 {[%clk 0:01:07.9]}
30... Qd6 {[%clk 0:00:10.7]} 31. Rf1 {[%clk 0:01:03.5]} 31... Bf4 {[%clk
0:00:08]} 32. Nxf4 {[%clk 0:00:58.1]} 32... exf4 {[%clk 0:00:09.3]} 33. e5
{[%clk 0:00:59.9]} 33... Qd4 {[%clk 0:00:10.5]} 34. e6 {[%clk 0:00:53.5]} 34...
Rf2 {[%clk 0:00:11.2]} 35. Rc1 {[%clk 0:00:49.7]} 35... Rd2 {[%clk 0:00:08.3]}
36. e7 {[%clk 0:00:48.1]} 36... Rxd3 {[%clk 0:00:09.7]} 37. cxd3 {[%clk
0:00:49.3]} 37... Qxd3+ {[%clk 0:00:11.2]} 38. Ka1 {[%clk 0:00:49.8]} 38... Qe3
{[%clk 0:00:12.8]} 39. Rb1 {[%clk 0:00:47.8]} 39... b3 {[%clk 0:00:07]} 40. a3
{[%clk 0:00:45.7]} 40... Qe6 {[%clk 0:00:07.1]} 41. Qd8 {[%clk 0:00:44.8]} 41...
Bc6 {[%clk 0:00:08.3]} 42. Qc7+ {[%clk 0:00:46]} 42... Ka8 {[%clk 0:00:09]} 43.
Rd1 {[%clk 0:00:45.8]} 43... Bb7 {[%clk 0:00:07]} 44. Rd8+ {[%clk 0:00:45.3]}
1-0

[Event "*** Titled Tuesday Blitz"]
[Site "Chess.com"]
[Date "2020.02.04"]
[Round "9"]
[White "SCIM"]
[Black "Gusarov91"]
[Result "1-0"]
[WhiteElo "2490"]
[BlackElo "2601"]
[TimeControl "180+2"]
[EndTime "15:09:01 PST"]
[Termination "SCIM won by resignation"]

1. d4 {[%clk 0:02:59.7]} 1... Nf6 {[%clk 0:03:00.9]} 2. c4 {[%clk 0:03:00.2]}
2... g6 {[%clk 0:03:01.7]} 3. Nc3 {[%clk 0:03:01]} 3... d5 {[%clk 0:03:03.3]} 4.
cxd5 {[%clk 0:03:01.7]} 4... Nxd5 {[%clk 0:03:04.8]} 5. e4 {[%clk 0:03:03.4]}
5... Nxc3 {[%clk 0:03:06]} 6. bxc3 {[%clk 0:03:05.3]} 6... Bg7 {[%clk
0:03:07.8]} 7. Bc4 {[%clk 0:03:06.5]} 7... c5 {[%clk 0:03:09]} 8. Ne2 {[%clk
0:03:07.9]} 8... cxd4 {[%clk 0:03:08.5]} 9. cxd4 {[%clk 0:03:07.2]} 9... O-O
{[%clk 0:03:09.6]} 10. O-O {[%clk 0:03:07.2]} 10... Nc6 {[%clk 0:03:11]} 11. Be3
{[%clk 0:03:05.9]} 11... Na5 {[%clk 0:03:11.7]} 12. Bd3 {[%clk 0:03:05.2]} 12...
Be6 {[%clk 0:03:05.2]} 13. d5 {[%clk 0:03:04.7]} 13... Bg4 {[%clk 0:03:04.8]}
14. f3 {[%clk 0:03:02]} 14... Bxa1 {[%clk 0:02:52.4]} 15. Qxa1 {[%clk
0:03:03.9]} 15... Bd7 {[%clk 0:02:53]} 16. Bh6 {[%clk 0:03:04]} 16... f6 {[%clk
0:02:54.4]} 17. Bxf8 {[%clk 0:03:03.1]} 17... Qb6+ {[%clk 0:02:54.7]} 18. Qd4
{[%clk 0:03:00.7]} 18... Qxd4+ {[%clk 0:02:53.3]} 19. Nxd4 {[%clk 0:03:01.4]}
19... Kxf8 {[%clk 0:02:54.1]} 20. Rc1 {[%clk 0:03:02.2]} 20... Rc8 {[%clk
0:02:53.8]} 21. Rxc8+ {[%clk 0:03:02.6]} 21... Bxc8 {[%clk 0:02:55.1]} 22. Kf2
{[%clk 0:03:02.5]} 22... Bd7 {[%clk 0:02:54.1]} 23. Ke3 {[%clk 0:03:02.3]} 23...
Ke8 {[%clk 0:02:54.3]} 24. f4 {[%clk 0:03:01.1]} 24... b6 {[%clk 0:02:52.5]} 25.
h4 {[%clk 0:02:55]} 25... Nb7 {[%clk 0:02:52.2]} 26. Bb5 {[%clk 0:02:52.1]}
26... Nd6 {[%clk 0:02:49.8]} 27. Bxd7+ {[%clk 0:02:49.5]} 27... Kxd7 {[%clk
0:02:51.1]} 28. Ne6 {[%clk 0:02:50.8]} 28... Ke8 {[%clk 0:02:44.7]} 29. g4
{[%clk 0:02:46.7]} 29... a5 {[%clk 0:02:39.1]} 30. e5 {[%clk 0:02:36.8]} 30...
fxe5 {[%clk 0:02:34.7]} 31. fxe5 {[%clk 0:02:38.7]} 31... Nc4+ {[%clk 0:02:34]}
32. Kd4 {[%clk 0:02:37.7]} 32... Nd2 {[%clk 0:02:35.5]} 33. h5 {[%clk
0:02:29.2]} 33... gxh5 {[%clk 0:02:36.4]} 34. gxh5 {[%clk 0:02:30.1]} 34... Nf3+
{[%clk 0:02:38]} 35. Ke4 {[%clk 0:02:29.4]} 35... Nd2+ {[%clk 0:02:37.8]} 36.
Kf5 {[%clk 0:02:27.6]} 36... b5 {[%clk 0:02:36.5]} 37. Nc7+ {[%clk 0:02:26.7]}
37... Kd7 {[%clk 0:02:35.5]} 38. Nxb5 {[%clk 0:02:28.6]} 38... Nc4 {[%clk
0:02:34.1]} 39. Nd4 {[%clk 0:02:05.7]} 39... Ne3+ {[%clk 0:02:17.5]} 40. Ke4
{[%clk 0:02:05.7]} 40... Nd1 {[%clk 0:02:18.8]} 41. Ne2 {[%clk 0:01:49.4]} 41...
Nf2+ {[%clk 0:02:18.3]} 42. Kf5 {[%clk 0:01:46.9]} 42... a4 {[%clk 0:02:13.9]}
43. Nc3 {[%clk 0:01:42.9]} 43... a3 {[%clk 0:02:08.1]} 44. Nb5 {[%clk
0:01:40.5]} 44... Nd1 {[%clk 0:02:08.4]} 45. e6+ {[%clk 0:01:20.6]} 45... Ke8
{[%clk 0:02:07.4]} 46. Nxa3 {[%clk 0:01:19.6]} 46... Nc3 {[%clk 0:02:07.7]} 47.
Ke5 {[%clk 0:01:18.6]} 47... Nxa2 {[%clk 0:02:08.8]} 48. Nb5 {[%clk 0:01:16.5]}
48... Nb4 {[%clk 0:02:07.8]} 49. Nd4 {[%clk 0:01:12.4]} 49... Nd3+ {[%clk
0:02:07.3]} 50. Kf5 {[%clk 0:01:12.4]} 50... Kf8 {[%clk 0:02:05.7]} 51. Nf3
{[%clk 0:01:10.9]} 51... Nb4 {[%clk 0:02:03.8]} 52. Ke5 {[%clk 0:01:06.4]} 52...
Nd3+ {[%clk 0:02:00.1]} 53. Ke4 {[%clk 0:01:05.3]} 53... Nf2+ {[%clk 0:01:58.6]}
54. Kf5 {[%clk 0:01:04.6]} 54... Kg7 {[%clk 0:01:56.6]} 55. h6+ {[%clk
0:00:57.3]} 55... Kg8 {[%clk 0:01:51.4]} 56. Ng5 {[%clk 0:00:54.8]} 56... Nd1
{[%clk 0:01:48.5]} 57. d6 {[%clk 0:00:50.9]} 57... Ne3+ {[%clk 0:01:42]} 58. Ke4
{[%clk 0:00:39.3]} 58... Nc4 {[%clk 0:01:34.7]} 59. d7 {[%clk 0:00:29.3]} 59...
Nd6+ {[%clk 0:01:35.6]} 60. Kd5 {[%clk 0:00:29]} 60... Nb7 {[%clk 0:01:37.1]}
61. Nf7 {[%clk 0:00:28.2]} 61... Kf8 {[%clk 0:01:35.3]} 62. Kc6 {[%clk
0:00:26.8]} 1-0

[Event "*** Titled Tuesday Blitz"]
[Site "Chess.com"]
[Date "2020.02.04"]
[Round "9"]
[White "Alopekos"]
[Black "ChEsper99"]
[Result "1-0"]
[WhiteElo "2455"]
[BlackElo "2045"]
[TimeControl "180+2"]
[EndTime "15:09:09 PST"]
[Termination "Alopekos won by resignation"]

1. e4 {[%clk 0:03:01.9]} 1... c5 {[%clk 0:03:01]} 2. Nc3 {[%clk 0:03:02.8]} 2...
d6 {[%clk 0:03:00.6]} 3. Nge2 {[%clk 0:03:03.7]} 3... Nf6 {[%clk 0:02:59.1]} 4.
d4 {[%clk 0:03:05]} 4... cxd4 {[%clk 0:03:00.1]} 5. Nxd4 {[%clk 0:03:06.9]} 5...
a6 {[%clk 0:03:01.5]} 6. Be3 {[%clk 0:03:07.6]} 6... e5 {[%clk 0:03:02.1]} 7.
Nb3 {[%clk 0:03:08.7]} 7... Be7 {[%clk 0:03:03.3]} 8. Be2 {[%clk 0:03:09]} 8...
O-O {[%clk 0:03:03.7]} 9. O-O {[%clk 0:03:10.3]} 9... Be6 {[%clk 0:02:55.6]} 10.
Nd5 {[%clk 0:03:11]} 10... Bxd5 {[%clk 0:02:29.4]} 11. exd5 {[%clk 0:03:12.9]}
11... Nfd7 {[%clk 0:02:30.9]} 12. Qd2 {[%clk 0:03:05.1]} 12... f5 {[%clk
0:02:29.9]} 13. f4 {[%clk 0:03:01.9]} 13... Bf6 {[%clk 0:01:52]} 14. c4 {[%clk
0:02:53.4]} 14... b6 {[%clk 0:01:52.8]} 15. fxe5 {[%clk 0:02:47.5]} 15... Bxe5
{[%clk 0:01:47.2]} 16. Nd4 {[%clk 0:02:48.3]} 16... Nc5 {[%clk 0:01:23.6]} 17.
Nxf5 {[%clk 0:02:19.2]} 17... a5 {[%clk 0:01:17.9]} 18. Bd4 {[%clk 0:02:15.5]}
18... Nbd7 {[%clk 0:01:14.9]} 19. Rae1 {[%clk 0:01:49.3]} 19... Rf7 {[%clk
0:00:29.6]} 20. Bh5 {[%clk 0:01:41.5]} 20... Rf8 {[%clk 0:00:29]} 21. Bg4 {[%clk
0:01:31.9]} 21... Bxd4+ {[%clk 0:00:23.5]} 22. Qxd4 {[%clk 0:01:32]} 22... Ne5
{[%clk 0:00:24.1]} 23. Bh3 {[%clk 0:00:49.7]} 23... Qg5 {[%clk 0:00:24.9]} 24.
Re3 {[%clk 0:00:40]} 24... g6 {[%clk 0:00:21.6]} 25. Ng3 {[%clk 0:00:12.1]}
25... Rxf1+ {[%clk 0:00:22.7]} 26. Kxf1 {[%clk 0:00:14]} 26... Rf8+ {[%clk
0:00:23.6]} 27. Kg1 {[%clk 0:00:15.4]} 27... Ncd3 {[%clk 0:00:19.7]} 28. Rxd3
{[%clk 0:00:09.4]} 28... Nxd3 {[%clk 0:00:12.2]} 29. Qxd3 {[%clk 0:00:10.7]}
29... Qc1+ {[%clk 0:00:11.5]} 30. Nf1 {[%clk 0:00:11.9]} 30... Qf4 {[%clk
0:00:10.6]} 31. Be6+ {[%clk 0:00:11.1]} 31... Kg7 {[%clk 0:00:11.2]} 32. Qc3+
{[%clk 0:00:13]} 32... Kh6 {[%clk 0:00:11.4]} 33. Qe3 {[%clk 0:00:12.5]} 33...
g5 {[%clk 0:00:04.8]} 34. Qxf4 {[%clk 0:00:13]} 34... Rxf4 {[%clk 0:00:06.7]}
35. Ne3 {[%clk 0:00:12.2]} 35... Re4 {[%clk 0:00:02.8]} 36. Kf2 {[%clk
0:00:12.7]} 36... Kg6 {[%clk 0:00:03.4]} 37. Bf5+ {[%clk 0:00:13]} 1-0